Cogmind - Beta 16 @@@ ROGUE MODE // 2025.12.01 @ 22:30:45 Player: OG DANIEL Result: Self-destructed Performance ------------- Evolutions (2) 1000 Regions Visited (3) 600 Robots Destroyed (37) 185 Value Destroyed (1143) 1143 Prototype IDs (1) 20 Alien Tech Used (0) 0 Bonus (0) 0 TOTAL SCORE: 2948 Bonus ------- None Cogmind --------- Core Integrity 359/550 Matter 5/450 Energy 150/150 System Corruption 3% Temperature Cool (0) Movement Walking (175) Ox1 Location -8/Materials Parts ------- > --- POWER (1) -------- Micro Nuclear Core > --- PROPULSION (4) --- Aluminum Leg Aluminum Leg Aluminum Leg Aluminum Leg > --- UTILITY (4) ------ Large Storage Unit Compact Matter Pod Trap Scanner High-powered Tractor Beam > --- WEAPON (2) ------- Autogun > --- INVENTORY (15) --- Micro Nuclear Core Terrain Scan Processor Core Shielding EM Pulse Gun Autogun Autogun Minigun High-powered Shotgun Enhanced Autogun Flak Cannon Flak Cannon Grenade Launcher Mining Laser Peak State ------------ > --- POWER ------------ Micro Nuclear Core > --- PROPULSION ------- Aluminum Leg Aluminum Leg Aluminum Leg Aluminum Leg > --- UTILITY ---------- Large Storage Unit Compact Matter Pod Trap Scanner High-powered Tractor Beam > --- WEAPON ----------- Flak Cannon Flak Cannon > --- INVENTORY -------- Micro Nuclear Core Aluminum Leg Aluminum Leg Terrain Scan Processor Core Shielding EM Pulse Gun Autogun Autogun Autogun Minigun High-powered Shotgun Enhanced Autogun Flak Cannon Grenade Launcher Mining Laser [Rating: 27] Favorites ----------- Power Ion Engine Engine Ion Engine Power Core Light Nuclear Core Propulsion Aluminum Leg Leg Aluminum Leg Wheel Compact Wheel Utility Large Storage Unit Device High-powered Tractor Beam Storage Large Storage Unit Processor Melee Analysis Suite Protection Core Shielding Weapon Autogun Energy Gun EM Pulse Gun Ballistic Gun Autogun Ballistic Cannon Flak Cannon Build | -11 -10 -9 -8 ------- Run | Yrd Mat Mat Mat Slots Evolved 4 | . . 2 2 Power . | . . . . Propulsion 2 | . . 2 . Utility 2 | . . . 2 Weapon . | . . . . Parts Attached 37 | 6 10 3 18 Power 4 | 1 1 . 2 Engine 2 | 1 . . 1 Core 2 | . 1 . 1 Reactor . | . . . . Propulsion 12 | 2 2 2 6 Treads . | . . . . Leg 11 | 2 2 1 6 Wheel 1 | . . 1 . Hover . | . . . . Flight . | . . . . Utility 10 | 1 4 . 5 Device 2 | . . . 2 Storage 5 | 1 3 . 1 Processor 1 | . . . 1 Hackware . | . . . . Protection 2 | . 1 . 1 Artifact . | . . . . Weapon 11 | 2 3 1 5 Energy Gun 2 | 1 1 . . Energy Cannon . | . . . . Ballistic Gun 6 | 1 2 1 2 Ballistic Cannon 3 | . . . 3 Launcher . | . . . . Special Weapon . | . . . . Impact Weapon . | . . . . Slashing Weapon . | . . . . Piercing Weapon . | . . . . Special Melee Weapon . | . . . . Unidentified Prototypes 1 | . . . 1 Parts Lost 10 | . 1 2 7 Power 2 | . . 1 1 Propulsion 6 | . . 1 5 Utility 1 | . . . 1 Weapon 1 | . 1 . . Highest Loss Streak 3 | . 1 1 3 To Critical Strikes . | . . . . Average Backups 10 | 1 5 10 14 Power . | . 1 . . Propulsion 2 | . 1 3 3 Utility . | . . . 1 Weapon 6 | . 2 5 9 Tool/Special . | . . . . Unused Backups 11 | . 1 . 10 Power 3 | . 1 . 2 Propulsion . | . . . . Utility 2 | . . . 2 Weapon 5 | . . . 5 Tool/Special 1 | . . . 1 Average Slot Usage (%) 94 | . 95 88 96 Engine 5 | . 7 3 5 Core 4 | . 6 3 3 Leg 33 | . 28 37 34 Device 5 | . . . 10 Storage 14 | . 14 11 15 Protection 9 | . 10 11 8 Energy Gun 2 | . 10 . . Ballistic Gun 13 | . 17 22 6 Ballistic Cannon 5 | . . . 11 Peak Build Rating 27 | 6 12 14 27 Average Rating 15 | 4 8 11 21 On Entrance 7 | . 6 12 11 Avg Prop Armor Cover (%) 7 | . . 7 7 Naked Turns . | . . . . Heaviest Build 42 | 13 32 32 42 Greatest Support 30 | 20 20 30 30 Greatest Overweight (x) 2 | . 1 1 2 Average Overweight (x) . | . . 1 1 Largest Inventory Capacity 15 | 8 15 15 15 Average Capacity 13 | 6 9 15 15 Most Carried 15 | 2 10 13 15 Average Carried 10 | 1 5 10 14 Final Capacity 15 | 8 15 15 15 Final Carried 13 | 2 9 12 13 Class Distribution -------------------- 64% | Scavenger-Mutant 35% | Mutant Dominant Class ---------------- Mutant | -10/Materials Mutant | -9/Materials Scavenger-Mutant | -8/Materials Resources | -11 -10 -9 -8 ----------- Run | Yrd Mat Mat Mat Matter Collected 1375 | 221 214 277 663 Remotely 613 | . . . 613 Salvage Created 1489 | . 610 277 602 Parts 73 | . 24 13 36 Haulers Intercepted 2 | . 1 . 1 Recyclers Shooed 2 | . 1 1 . Parts Field Recycled . | . . . . Retrieved Matter . | . . . . Parts Self-Destructed . | . . . . Prevented . | . . . . Parts Restored . | . . . . Kills | -11 -10 -9 -8 ------- Run | Yrd Mat Mat Mat Combat Hostiles Destroyed 28 | . 8 6 14 Guns 18 | . 8 6 4 Cannons 10 | . . . 10 Classes Destroyed 9 | . 4 1 4 Worker 1 | . . . 1 Builder 2 | . 1 . 1 Hauler 2 | . 1 . 1 Recycler 4 | . 3 . 1 Swarmer 3 | . . . 3 Grunt 16 | . 8 4 4 Sentry 6 | . . 2 4 Specialist 2 | . . . 2 Hunter 1 | . . . 1 Best Kill Streak 4 | . 4 3 3 Combat Bots Only 3 | . 3 3 3 Max Kills in Single Turn 2 | . 1 1 2 Gunslinging . | . . . . Exploded . | . . . . Melee . | . . . . Uniques/NPCs Destroyed . | . . . . Combat | -11 -10 -9 -8 -------- Run | Yrd Mat Mat Mat Hostile Shots Fired 208 | . 44 27 137 Missed 59 | . 12 6 41 Hits 149 | . 32 21 96 Projectile 149 | . 32 21 96 Critical Strikes 7 | . 1 . 6 Damage Taken 2079 | . 456 284 1339 Core 326 | . 99 36 191 Absorbed by Shields . | . . . . Redirected to Shielding 49 | . 16 8 25 Core Remaining (%) 83 | 100 60 91 . Volleys Fired 153 | . 45 30 78 Largest 2 | . 2 2 2 Hottest 74 | . 60 46 74 Shots Fired 274 | . 79 60 135 Gun 193 | . 79 60 54 Cannon 81 | . . . 81 Launcher . | . . . . Special . | . . . . Kinetic 251 | . 56 60 135 Thermal . | . . . . Explosive . | . . . . Electromagnetic 23 | . 23 . . Robot Hit Streak 10 | . 7 10 7 Robot Miss Streak 10 | . 5 3 10 Penetration Max . | . . . . Secondary Targets 2 | . 2 . . Max Gunslinging Chain 1 | . 1 . . Shots Hit Robots 198 | . 50 45 103 Core Hits 100 | . 26 13 61 Critical Kills . | . . . . Critical Parts Destroyed . | . . . . Critical Strikes . | . . . . Melee Attacks . | . . . . Impact . | . . . . Slashing . | . . . . Piercing . | . . . . Sneak Attacks . | . . . . Combat Hostiles . | . . . . Follow-up Attacks . | . . . . Damage Inflicted 2707 | . 699 684 1324 Guns 1750 | . 596 684 470 Cannons 854 | . . . 854 Explosions 103 | . 103 . . Melee . | . . . . Ramming . | . . . . Kinetic 2407 | . 399 684 1324 Thermal 103 | . 103 . . Explosive . | . . . . Electromagnetic 197 | . 197 . . Impact . | . . . . Slashing . | . . . . Piercing . | . . . . Highest Corruption 3 | . . . 3 Average Corruption 2 | . . . 2 Corruption Purged . | . . . . Corruption Blocked . | . . . . Effects 15 | . . . 15 Message Errors 4 | . . . 4 Matter Fused 3 | . . . 3 Heat Flow Errors 3 | . . . 3 Energy Discharges 2 | . . . 2 Data Loss (minor) 1 | . . . 1 Misfires 1 | . . . 1 Weapon Failures 1 | . . . 1 Overload Shots . | . . . . Overflow Damage 9 | . 9 . . Projectiles . | . . . . Explosions 9 | . 9 . . Melee . | . . . . Knockbacks 33 | . . . 33 Impact . | . . . . Kinetic 29 | . . . 29 Secondary 4 | . . . 4 Self-Inflicted Damage 54 | . 54 . . Shots 1 | . 1 . . Rammed . | . . . . Targets Rammed . | . . . . Kicked . | . . . . Crushed . | . . . . Highest Temperature 253 | . 81 26 253 Average Temperature 36 | . 27 8 56 Received Heat Transfer 879 | . 252 132 495 Siege Activations . | . . . . Martial Activations . | . . . . Shielding Activations . | . . . . Robots Disrupted . | . . . . Combat Hostiles . | . . . . Robots Corrupted . | . . . . Combat Hostiles . | . . . . Parts Fried . | . . . . Impact Corruptions . | . . . . Robots Melted . | . . . . Combat Hostiles . | . . . . Parts Melted . | . . . . Heat Transferred 150 | . 150 . . Parts Sabotaged . | . . . . Parts Stolen . | . . . . Parts Stripped . | . . . . Power Chain Reactions 1 | . 1 . . Alert | -11 -10 -9 -8 ------- Run | Yrd Mat Mat Mat Maximum Alert Level . | . . . . Low Security (%) 100 | 100 100 100 100 Level 1 . | . . . . Level 2 . | . . . . Level 3 . | . . . . Level 4 . | . . . . Level 5 . | . . . . High Security . | . . . . Max Security . | . . . . Peak Influence 124 | . 72 71 124 Initial 22 | . . 22 . Average 30 | . 23 23 40 Influence Increases 865 | . 231 162 472 Destroy 0b10 Robot/C 560 | . 160 120 280 Destroy 0b10 Robot/NC 45 | . 25 . 20 Destroy Leader 164 | . 42 40 82 Destroy Structure 6 | . 4 2 . Lose Combat Pursuer 90 | . . . 90 Influence Decreases 741 | . 178 215 348 Entered New Map 31 | . . 31 . Time Decay 620 | . 168 164 288 Lost Part 90 | . 10 20 60 Squads Dispatched 6 | . 3 1 2 Investigation 1 | . 1 . . Extermination . | . . . . Reinforcement 5 | . 2 1 2 Assault . | . . . . Garrison . | . . . . Intercept . | . . . . Searches Triggered . | . . . . Construction Impeded . | . . . . Haulers Reinforced . | . . . . Active Scanning Responses . | . . . . Cargo Convoy Interrupts . | . . . . Stealth | -11 -10 -9 -8 --------- Run | Yrd Mat Mat Mat Distress Signals 7 | . . 3 4 Communications Jammed . | . . . . Distress Signals . | . . . . Times Spotted 59 | . 13 15 31 Peak Tracking Total 11 | . 4 6 11 Tactical Retreats 3 | . . . 3 Traps | -11 -10 -9 -8 ------- Run | Yrd Mat Mat Mat Traps Triggered 3 | . 1 . 2 Indirectly . | . . . . Trap Hack Attempts . | . . . . Triggered . | . . . . Disarmed . | . . . . Reprogrammed . | . . . . Reused . | . . . . Traps Extracted . | . . . . Installed . | . . . . Triggered . | . . . . Machines | -11 -10 -9 -8 ---------- Run | Yrd Mat Mat Mat Machines Disabled . | . . . . Max in Single Turn . | . . . . Machines Repaired . | . . . . Machines Dismantled . | . . . . Machines Sabotaged . | . . . . Overloaded Fab Kills . | . . . . Hacking | -11 -10 -9 -8 --------- Run | Yrd Mat Mat Mat Machines Accessed 4 | . 1 2 1 Terminals 3 | . 1 1 1 Fabricators . | . . . . Repair Stations . | . . . . Recycling Units . | . . . . Scanalyzers 1 | . . 1 . Garrison Access . | . . . . Total Hacks 13 | . 2 9 2 Successful 4 | . . 4 . Failed 8 | . 2 4 2 Catastrophic 2 | . . 1 1 Database Lockouts 1 | . . 1 . Manual 1 | . . 1 . Terminals 5 | . 2 1 2 Fabricators . | . . . . Repair Stations . | . . . . Recycling Units . | . . . . Scanalyzers 8 | . . 8 . Garrison Access . | . . . . Terminal Hacks . | . . . . Fabricator Hacks . | . . . . Repair Station Hacks . | . . . . Recycling Unit Hacks . | . . . . Scanalyzer 4 | . . 4 . Retrieve Study 4 | . . 4 . Garrison Access Hacks . | . . . . Unauthorized Hacks . | . . . . Terminals . | . . . . Fabricators . | . . . . Repair Stations . | . . . . Recycling Units . | . . . . Scanalyzers . | . . . . Garrison Access . | . . . . Data Cores Recovered . | . . . . Used . | . . . . Hacking Detections 3 | . 1 2 . Full Trace Events . | . . . . Feedback Events . | . . . . Feedback Blocked . | . . . . Robot Schematics Acquired . | . . . . Robots Built . | . . . . Authchips . | . . . . Time . | . . . . Total Robot Build Rating . | . . . . Part Schematics Acquired . | . . . . Parts Built . | . . . . Authchips . | . . . . Time . | . . . . Total Part Build Rating . | . . . . Part Studies Acquired 4 | . . 4 . Parts Repaired . | . . . . Time . | . . . . Parts Recycled . | . . . . Recycled Matter . | . . . . Retrieved Matter . | . . . . Retrieved Components . | . . . . Parts Scanalyzed . | . . . . Part Schematics Acquired . | . . . . Parts Damaged . | . . . . Bothacking | -11 -10 -9 -8 ------------ Run | Yrd Mat Mat Mat Used RIF Installer . | . . . . Robots Hacked . | . . . . Non-combat . | . . . . Combat . | . . . . Robot Hacks Applied . | . . . . Relay Couplers Released . | . . . . Fabnet Peak Effective % . | . . . . Robots Rewired . | . . . . Allies Hacked . | . . . . Hacks Repelled . | . . . . Allies | -11 -10 -9 -8 -------- Run | Yrd Mat Mat Mat Total Allies . | . . . . Largest Group . | . . . . Highest-Rated Group . | . . . . Highest-Rated Ally . | . . . . Total Orders . | . . . . Ally Attacks . | . . . . Total Damage . | . . . . Kills . | . . . . Allies Corrupted . | . . . . Allies Melted . | . . . . Intel | -11 -10 -9 -8 ------- Run | Yrd Mat Mat Mat Active Infowar (turns) 235 | . . . 235 Traps 235 | . . . 235 Robot Analysis Total . | . . . . Derelict Logs Recovered . | . . . . Drone Launches . | . . . . Drone Recoveries . | . . . . Exploration | -11 -10 -9 -8 ------------- Run | Yrd Mat Mat Mat Turns Passed 1991 | 74 493 477 947 Spaces Moved 830 | 55 263 195 317 Core 3 | 3 . . . Treads . | . . . . Legs 827 | 52 263 195 317 Wheels . | . . . . Hover . | . . . . Flight . | . . . . Fastest Speed 50 | 50 120 175 175 Average Speed 165 | 116 131 180 191 Slowest Speed 245 | 120 190 190 245 Overloaded Moves . | . . . . Propulsion Burnouts . | . . . . Robots Hopped . | . . . . Potential Cave-ins . | . . . . Cave-ins Triggered . | . . . . Exploration Rate (%) 24 | 4 42 20 30 Regions Visited 3 Branch Regions . Pre-discovered Areas . | . . . . Known Exits Taken . | . . . . Unknown Exits Taken 3 | 1 1 1 . Scrap Searched . | . . . . Spaces Dug . | . . . . Terrain Destroyed 4 | . 4 . . Melee . | . . . . Projectile . | . . . . AOE 4 | . 4 . . Terrain Rammed . | . . . . Walls Destroyed . | . . . . Machines Disabled . | . . . . Actions | -11 -10 -9 -8 --------- Run | Yrd Mat Mat Mat Total 1216 | 62 346 272 536 Wait 141 | . 11 37 93 Move 827 | 54 262 194 317 Hop . | . . . . Pick Up 27 | 2 8 5 12 Fast Attach 15 | 6 3 . 6 Attach 15 | . 2 4 9 Detach 8 | . 3 1 4 Swap 13 | . 5 1 7 Drop 17 | . 7 . 10 Fire 153 | . 45 30 78 Melee . | . . . . Ram . | . . . . Kick . | . . . . Crush . | . . . . Escape Stasis . | . . . . Rewire . | . . . . Trap . | . . . . Miscellaneous . | . . . . Route ------- -11/Scrapyard -10/Materials (discovered 2 exits: *Mat / [*Min]) -9/Materials -8/Materials (discovered 1 exit: [*Sto]) History --------- Turn | Location | Event 12 | -11/Scrapyard | Discovered new exit (range 15) 75 | -11/Scrapyard | Entered Materials 366 | -10/Materials | Discovered new exit (range 14) 526 | -10/Materials | Discovered new exit (range 10) 568 | -10/Materials | Entered another Materials area 568 | -9/Materials | Evolved 2 slots: Propulsion x2 809 | -9/Materials | Central database locked down 908 | -9/Materials | Discovered new exit (range 3) 987 | -9/Materials | Build established: Mutant 1045 | -9/Materials | Entered another Materials area 1045 | -8/Materials | Evolved 2 slots: Utility x2 1086 | -8/Materials | Discovered new exit (range 15) 1356 | -8/Materials | Build established: Scavenger-Mutant 1438 | -8/Materials | Lost 3 parts (1p1n1u) 1992 | -8/Materials | Self-destructed Last Messages --------------- 01919_ System corrupted: Component data lost. 01920_ G-50 Soldier knocked back. 01929_ Aluminum Leg+ destroyed. 01930_ G-47 Trooper knocked back. 01939_ Y-45 Defender destroyed. 01940_ Acquired 43 matter. 01942_ G-47 Trooper knocked back. 01947_ |EIB71MO,YUP >3QC=6A60EK%VPYJ38 01948_ G-47 Trooper knocked back. 01954_ Aluminum Leg+ destroyed. 01954_ G-47 Trooper destroyed. 01955_ Acquired 26 matter. 01965_ W-25 Informer sends out distress signal. 01986_ R-06 Scavenger collects Lgt. Treads. 01986_ G-47 Trooper knocked back. 01988_ System corrupted: Matter fused (-9). 01988_ R-06 Scavenger collects Welding Torch. 01991_ Dropped Flak Cannon. 01991_ R-06 Scavenger collects Lgt. Armor Plating. Map ----- +----------------------------------------------------+ | ??????????????????????????????# ????????????????#^ | | ??????????????????????????????# ??????????????##^ | | ?????????????????????########?# ############## | | ????????????????????? ?# | | ??????????????????????? ## | | ???????????????????????? ## | | ????????????????????????? ######### ####### | | ????????????????????##+#?## #???????# ######### | | ????????????????????? # ######??# # | | ????????????????????? # ==#??# + | | ????????????????????? """ # ==#??# # | | ???????????????????????"" # ==#??# # | | ???????????????????????"" + ==#??# #? = | | ???????????????????????[% # **#??# #? | | ???????????????#########+## ** #??# #?? | | ???????????????# ==## =#####??# #?? | | ???????????????# # = |####### #??? | | ???????????????# """ #* * #???##### | | ????????????????""""" [/ [ #???????? | | ????????????????""""" # #???????? | | ????????????????""""" # ###+#### ##???????? | | ???????????????? """ ! ## ##??????# #?????#### | | ???????????????# ## #???????# #?????# | | ????????????###############r #???????# #?????# | | ????????????#! [! g #???????# #?????# | | ????????????# @# #???????# #?????# | | ????????????# """ """ """ # #???????# #?????# ! | | ????????????# """ """ """ # #???????# #?????#### | | ????????????# """ """ """ # #???????? #????????? | | ????????????# # #???????? ?????????? | | ????????????###### ######## #???????? ?????????? | | ?????????????????###??????# #???????? ?????????? | | ??????????????????######### #??????????????????? | | ??????????? #??????????????????? | | ??????????? #??????????????????? | | ??????????? ! #??????????????????? | | ????????????# ######### #??????????????????? | | ????????????# #???????????# #??????????????????? | | ?????????????????????????? #??????????????????? | | ?????????????????????????? #??????????????????? | | ?????????????????????????? ??????????????????? | | ?????????????????????????? ?????????????????? | | ?????????????????????????? ^ ?????????????????? | | ?????????????????????????? ^ """????????????????? | | ??????????????????????????# """????????????????? | | ??????????????????????????? "??????????????????? | | ??????????????????????????? ??????????????????? | | ??????????????????????????? ??????????????????? | | ?????????????????????????????????????????????????? | | ?????????????????????????????????????????????????? | +----------------------------------------------------+ Best States ------------- Heat Dissipation 31 Energy Generation 15 Energy Capacity 250 Matter Stores 300 Matter Capacity 450 Sight Range 16 Terrain Scan Density 10 Armor Coverage 150 Core Shielding 20 Evasion (%) 55 Item Schematics ----------------- None Robot Schematics ------------------ None Fabricated ------------ Nothing Repaired ---------- Nothing Studied --------- Aluminum Leg | -9/Materials | Hacked Autogun | -9/Materials | Hacked EM Pulse Gun | -9/Materials | Hacked Grenade Launcher | -9/Materials | Hacked Alien Tech Used ----------------- None Achievements -------------- None Challenges ------------ None Game ------ Seed PiercelightPointCycler Manual? 0 Play Time 00:16:14 Cumulative 38.6 hours Start 2025.12.01 @ 22:14:59 End 2025.12.01 @ 22:30:45 Sessions 1 Manual Loads 0 Difficulty Rogue Special Mode None Game No. 103 Rogue 103 Adventurer 0 Explorer 0 Win Type - Total 0 Types 0/0/0/0/0/0/0/0/0/0 Lore% 9 Gallery% 22 Achievement% 17 Wizard Run 0 Options --------- Layout 1 ASCII 0 Keyboard 0 Movement Mouse Keybinds 0 Fullscreen 1 Font 24/Smallcaps Map View 50x35 Zoom Use 0% Tactical HUD 1 Map Filters NONE Filters NONE Steam 1 RUN: 216f93a6-2831-4918-8c2c-d356be8973ca